Workbook

Sheet Sheet1
G10: =Lintel_Safe_Load -> 5.323164997
G19: =C213 -> 3.603757257
G20: =C214 -> 1248.696757
A32: =TODAY() -> 2025-09-05 | F32: ULTRAlintel Designer
B103: Render | D103: None
D104: One Face
D105: Both Faces
B107: Limiting total deflection (Span / ??) | D107: =IF(D127=1,750,1000) -> 1000
B108: Lintel description | D108: 1
B109: Environment | D109: 2
B110: Lintel width | D110: 110 | E110: mm
B111: Lintel depth | D111: =IF(Lintel_choice=1,170,80) -> 170 | E111: mm
B112: Concrete strength | D112: 60 | E112: MPa
B113: Concrete Modulus | D113: =2400^1.5*0.043*$D$112^0.5*0.8 -> 31329.31723 | E113: MPa
B114: Gross Lintel Section | D114: =$D$110*$D$111^3/12 -> 45035833.33 | E114: mm4
B115: Gross Lintel Area | D115: =$D$110*$D$111 -> 18700 | E115: mm2
B116: Lintel Self Weight | D116: =IF(Lintel_choice=1,0.4488,0.2212) -> 0.4488 | E116: kN/m
D117: Top | E117: Middle | F117: Bottom | I117: Prestress Force
B118: Depth to strand from top fibre | D118: =IF(Lintel_choice=1,40,0) -> 40 | F118: =IF(Lintel_choice=1,130,40) -> 130 | I118: 170 | J118: 80
B119: Number of strands | D119: =IF(Lintel_choice=1,1,0) -> 1 | F119: =IF(Lintel_choice=1,1,2) -> 1 | H119: Arid | I119: 104004.5419 | J119: 59952.59879
B120: Initial strand force | D120: =IF(Lintel_choice=1,70,0) -> 70 | F120: =IF(Lintel_choice=1,70,50) -> 70 | H120: Interior | I120: 106397.764 | J120: 62628.1885
B121: Prestress modulas of elasticity | D121: 200000 | E121: MPa | H121: Temperate | I121: 108795.5514 | J121: 65315.78941
B122: Prestress Eccentricity in Lintel only | D122: =IF(Lintel_choice=1,1.4210854715202E-14,0) -> 1.421085472e-14 | E122: mm | H122: Tropical | I122: 114569.3925 | J122: 71817.98784
B123: Prestress Force | D123: =IF(Lintel_environment=1,IF(Lintel_choice=1,I119,J119),IF(Lintel_environment=2,IF(Lintel_choice=1,I120,J120),IF(Lintel_environment=3,IF(Lintel_choice=1,I121,J121),IF(Lintel_choice=1,I122,J122)))) -> 106397.764 | E123: N
B125: Brick Wall Input
B126: Number of courses over | D126: =IF(Number_Courses_Prime="",0,VALUE(Number_Courses_Prime)) -> 6 | E126: 6
B127: Render to Wall | D127: 2
B128: Brick width | D128: 110 | E128: mm
B129: Brick height | D129: 76 | E129: mm
B130: Mortar thickness | D130: 10 | E130: mm
B131: Characteristic compressive strength (f'mb) | D131: 6.3 | E131: MPa
B132: Height Ratio | D132: =D129/D130 -> 7.6
B133: Compressive strength factor (Kh) | D133: =IF(OR(D132<3,D132=3),((D132-0)/(3-0)*(0.6-0)+0),IF(OR(D132<7.6,D132=7.6),((D132-3)/(7.6-3)*(1-0.6)+0.6),IF(OR(D132<12,D132=12),((D132-7.6)/(12-7.6)*(1.15-1)+1),IF(OR(D132<19,D132=19),((D132-12)/(19-12)*(1.3-1.15)+1.15),1.3)))) -> 1
B134: Characteristic compressive strength (f'm) | D134: =D133*D131 -> 6.3 | E134: MPa
B135: Characteristic shear strength (f'ms) | D135: 0.25 | E135: MPa
B136: Beam Density | D136: =IF(Lintel_choice=1,2406,2386) -> 2406 | E136: kg/m3
B137: Fcmi | D137: 63 | E137: Mpa
B138: Lintel modulas | D138: =Beam_Density^1.5*(IF(fcmi<=40,0.043,0.024)*fcmi^0.5+IF(fcmi<=40,0,0.12)) -> 36643.48568 | E138: MPa
B139: Brick modulas (750 x f'm normally) | D139: =750*D134 -> 4725 | E139: MPa
B140: Effective Nett modulas (0.8 x calculated) | D140: =J166*0.8 -> 11005.54018 | E140: MPa
B141: Depth of Brick Section | D141: =(D129+D130)*D126 -> 516 | E141: mm
B142: Depth of total section | D142: =$D$111+$D$141 -> 686 | E142: mm
B143: Based on Wb,Section I | D143: =E165 -> 933759095.3 | E143: mm4 | M143: Effective Prestress
B144: Unit weight of unrendered wall | D144: =IF(D108<3,0.18*D128/10,0.19*D128/10) -> 1.98 | E144: kN/m2 | M144: 170 | N144: 80
B145: Unit weight of render | D145: =IF(D127=1,0,IF(D127=2,0.012*23,0.012*2*23)) -> 0.276 | E145: kN/m2 | L145: Arid | M145: 945.4958351 | N145: 545.0236254
B146: Wall weight | D146: =(D145+D144)*D141/1000 -> 1.164096 | E146: kN/m | L146: Interior | M146: 967.2524001 | N146: 569.3471682
L147: Temperate | M147: 989.0504672 | N147: 593.7799038 | R147: fpy | S147: 1517
B148: Transformed Section Properties | L148: Tropical | M148: 1041.539932 | N148: 652.8907986
B149: Modular Ratio | D149: Bricks | E149: =$D$139/$D$113 -> 0.1508172031
D150: Stressing | E150: =$D$121/$D$113 -> 6.383796956
B152: Transformed Section based on Concrete properties
B153: Element | D153: Area (mm2) | E153: Section Centroid from bottom (mm) | G153: A*Y | H153: Ixx | I153: A*ycon2 | J153: I'xx*E (exc Steel) | K153: A*y² (exc Steel) | L153: A*y²*E (exc Steel) | M153: Effective prestress (Mpa) | N153: Steel Strain due to effective prestress | O153: Concrete Strain due to effective prestress | P153: Strain due to bending | Q153: Total Steel Strain | R153: Total Steel Stress | S153: Allowable Steel Stress | T153: Force in Steel | U153: Force x Lever arm about btm of section
B155: Bricks | D155: =$E$149*$D$128*$D$141 -> 8560.384447 | E155: =$D$111+$D$141/2 -> 428 | G155: =D155*E155 -> 3663844.543 | H155: =$E$149*$D$128*$D$141^3/12 -> 189937810.1 | I155: =D155*(E155-$E$163)^2 -> 483185914.6 | J155: =H155*D139 -> 8.974561528e+11 | K155: =D155*(E155-$J$163)^2 -> 473915343.7 | L155: =K155*D139 -> 2.239249999e+12
B156: Concrete | D156: =$D$110*$D$111 -> 18700 | E156: =$D$111/2 -> 85 | G156: =D156*E156 -> 1589500 | H156: =$D$110*$D$111^3/12 -> 45035833.33 | I156: =D156*(E156-$E$163)^2 -> 207818801.1 | J156: =H156*D138 -> 1.650269914e+12 | K156: =D156*(E156-$J$163)^2 -> 216946392.4 | L156: =K156*D138 -> 7.949672022e+12
B157: Top Strands | D157: =$D$119*55*($E$150-1) -> 296.1088326 | E157: =$D$111-$D$118 -> 130 | G157: =D157*E157 -> 38494.14824 | H157: 0 | I157: =D157*(E157-$E$163)^2 -> 1080955.777 | J157: 0 | K157: 0 | L157: 0 | M157: =IF(Lintel_choice=1,Lintels_BTMSTRpieff,0) -> 967.2524001 | N157: =Lintels_TOPSTRpieff/$D$121 -> 0.004836262001 | O157: =((Lintels_TOPSTRpieff*Lintels_NTOP+Lintels_MIDSTRpieff*Lintels_NMID+Lintels_BTMSTRpieff*Lintels_NBOT)*55/$D$113*($E$164*($D$142-($D$142-E157)-$E$163)/$E$165+1/$D$160)) -> 0.0001450972298 | P157: =$P$164*($D$142-E157-Lintels_NeutralAxis)/Lintels_NeutralAxis -> 2.563395e-05 | Q157: =N157+O157+P157 -> 0.00500699318 | R157: =Q157*200000 -> 1001.398636 | S157: =IF(ABS(R157)<fpy,R157,fpy*R157/ABS(R157)) -> 1001.398636 | T157: =S157*Lintels_NTOP*55 -> 55076.92498 | U157: =T157*E157 -> 7160000.248
B158: Middle Strands | D158: =$E$119*55*($E$150-1) -> 0 | E158: =$D$111-$E$118 -> 170 | G158: =D158*E158 -> 0 | H158: 0 | I158: =D158*(E158-$E$163)^2 -> 0 | J158: 0 | K158: 0 | L158: 0 | M158: 0 | N158: =Lintels_MIDSTRpieff/$D$121 -> 0 | O158: =((Lintels_TOPSTRpieff*Lintels_NTOP+Lintels_MIDSTRpieff*Lintels_NMID+Lintels_BTMSTRpieff*Lintels_NBOT)*55/$D$113*($E$164*($D$142-($D$142-E158)-$E$163)/$E$165+1/$D$160)) -> 0.0001297606566 | P158: =$P$164*($D$142-E158-Lintels_NeutralAxis)/Lintels_NeutralAxis -> -3.37641759e-05 | Q158: =N158+O158+P158 -> 9.599648073e-05 | R158: =Q158*200000 -> 19.19929615 | S158: =IF(ABS(R158)<fpy,R158,fpy*R158/ABS(R158)) -> 19.19929615 | T158: =S158*Lintels_NMID*55 -> 0 | U158: =T158*E158 -> 0
B159: Bottom Strands | D159: =$F$119*55*($E$150-1) -> 296.1088326 | E159: =$D$111-$F$118 -> 40 | G159: =D159*E159 -> 11844.3533 | H159: 0 | I159: =D159*(E159-$E$163)^2 -> 6699780.458 | J159: 0 | K159: 0 | L159: 0 | M159: =IF(Lintel_environment=1,IF(Lintel_choice=1,M145,N145),IF(Lintel_environment=2,IF(Lintel_choice=1,M146,N146),IF(Lintel_environment=3,IF(Lintel_choice=1,M147,N147),IF(Lintel_choice=1,M148,N148)))) -> 967.2524001 | N159: =Lintels_BTMSTRpieff/$D$121 -> 0.004836262001 | O159: =((Lintels_TOPSTRpieff*Lintels_NTOP+Lintels_MIDSTRpieff*Lintels_NMID+Lintels_BTMSTRpieff*Lintels_NBOT)*55/$D$113*($E$164*($D$142-($D$142-E159)-$E$163)/$E$165+1/$D$160)) -> 0.0001796045195 | P159: =$P$164*($D$142-E159-Lintels_NeutralAxis)/Lintels_NeutralAxis -> 0.0001592797333 | Q159: =N159+O159+P159 -> 0.005175146253 | R159: =Q159*200000 -> 1035.029251 | S159: =IF(ABS(R159)<fpy,R159,fpy*R159/ABS(R159)) -> 1035.029251 | T159: =S159*Lintels_NBOT*55 -> 56926.60879 | U159: =T159*E159 -> 2277064.351
B160: Total | D160: =SUM(D155:D159) -> 27852.60211 | E160: n.a. | G160: =SUM(G155:G159) -> 5303683.045 | H160: 234973643.4 | I160: 698785451.9 | J160: 2.547726066e+12 | K160: 690861736.1 | L160: 1.018892202e+13 | T160: =T157+T158+T159 -> 112003.5338 | U160: =U157+U158+U159 -> 9437064.599
B162: Nett: | G162: Excluding Steel:
B163: Neutral Axis location from bottom fibre (ycon) | E163: =G160/D160 -> 190.4196607 | F163: mm | G163: Neutral Axis location from bottom fibre (ycon) | J163: =(G155+G156)/(D155+D156) -> 192.709848 | K163: mm | P163: Maximum strain in bricks | S163: Summ forces
B164: Eccentricity of prestress in section | E164: =D111/2+Lintels_eccentricity-E163 -> -105.4196607 | F164: mm | G164: Transformed Section (Igt) | J164: =H160+K160 -> 925835379.5 | K164: mm4 | P164: =0.6*Brick_fmb/D139 -> 0.0008 | S164: =P166+T160 -> 2.711021807e-08
B165: Transformed Section (Igt) | E165: =H160+I160 -> 933759095.3 | F165: mm4 | G165: Igtconc*E | J165: =J160+L160 -> 1.273664809e+13 | K165: mm4 | P165: Compression
B166: First Moment of Area of bricks about centroid (Q) | E166: =D155*ABS(E155-$E$163) -> 2033779.041 | F166: mm3 | G166: Effective E | J166: =J165/J164 -> 13756.92523 | K166: MPa | P166: =-0.6*Brick_fmb*Lintels_NeutralAxis*D110/2 -> -112003.5338
P167: Neutral axis depth | R167: Moment capacity | S167: =-((Lintels_TotalDepth-Lintels_NeutralAxis*1/3)*P166+U160)/1000000*0.6 -> 28.37031417
P168: 538.7375362
B169: Moment Capacity due to Brick & Mortar compressive strength
B170: M1=Cr*F'm*Igt/y/MOD1 | F170: =0.6*$D$134*$E$165/($D$141+$D$111-$E$163)/1000000/$E$149 -> 47.22388295 | G170: kNm
B172: Moment Capacity due to decompression of the prestressed lintel
B173: M3=Ø(Pi/Ag+Pi*e*ylintel/Ig)*Igt/y | F173: =0.9*(Lintels_prestress/$D$115+Lintels_prestress*Lintels_eccentricity*($D$111/2)/$D$114)*$E$165/$E$163/1000000 -> 25.1105637 | G173: kNm
B175: Moment Capacity due to stress in steel with compatible stress in bricks | F175: =S167 -> 28.37031417 | G175: kNm
I183: Min moment | K183: Min shear
I184: 170 | J184: 80 | K184: 170 | L184: 80
H185: Arid | I185: 9.856641405 | J185: 1.992461697 | K185: 17.86962162 | L185: 8.643050417
H186: Interior | I186: 9.81491496 | J186: 2.010276496 | K186: 17.86962162 | L186: 8.643050417
B187: Minimum ultimate moment capacity based upon bearer | F187: =IF(Lintel_environment=1,IF(Lintel_choice=1,I185,J185),IF(Lintel_environment=2,IF(Lintel_choice=1,I186,J186),IF(Lintel_environment=3,IF(Lintel_choice=1,I187,J187),IF(Lintel_choice=1,I188,J188)))) -> 9.81491496 | H187: Temperate | I187: 9.772612299 | J187: 2.028148707 | K187: 17.86962162 | L187: 8.643050417
B188: Minimum ultimate shear capacity based upon bearer | F188: =IF(Lintel_choice=1,K185,L185) -> 17.86962162 | H188: Tropical | I188: 9.668717911 | J188: 2.071225446 | K188: 17.86962162 | L188: 8.643050417
B190: Ultimate Moment Capacity | D190: =IF(MIN(F170,F173,F175)<F187,F187,MIN(F170,F173,F175)) -> 25.1105637 | E190: kNm
B191: Ultimate Horizontal Shear Capacity | D191: =IF(Number_Courses=0,Lintel_shear,0.6*$D$135*$E$165*$D$110/$E$149/$E$166/1000) -> 50.23011117 | E191: kN
B192: Ultimate Vertical Shear Capacity | D192: =(0.6*$D$135*$D$141*$D$110/1000)+Lintel_shear -> 26.38362162 | E192: kN
B194: Span (mm) | D194: Safe Loads for various conditions (kN/m)
D195: (with self weight of lintel and specified wall deducted)
C196: Moment Capacity | D196: ="L/" & D107 & " Deflection" -> L/1000 Deflection | E196: Shear | F196: Governing condition
B197: 4500 | C197: =IF(($D$190-1.2*($D$116+$D$146)*(B197/1000)^2/8)/1.5*8/(B197/1000)^2<0,0,($D$190-1.2*($D$116+$D$146)*(B197/1000)^2/8)/1.5*8/(B197/1000)^2) -> 5.323164997 | D197: =IF((384*$D$140*$D$143/5/$D$107/B197^3-$D$116-$D$146)<0,0,(384*$D$140*$D$143/5/$D$107/B197^3-$D$116-$D$146)) -> 7.048140873 | E197: =2*MIN($D$191,$D$192)/B197*1000/1.5-$D$116-$D$146 -> 6.20447337 | F197: =MIN(C197,D197,E197) -> 5.323164997
B198: 900 | C198: 164.0467281 | D198: 1081.016713 | E198: 37.47395085 | F198: =MIN(C198,D198,E198) -> 37.47395085
B199: =B198+300 -> 1200 | C199: 91.71177097 | D199: 455.1214703 | E199: 27.70223914 | F199: =MIN(C199,D199,E199) -> 27.70223914
B200: 1500 | C200: 58.23101937 | D200: 232.2350996 | E200: 21.83921211 | F200: 21.83921211
B201: 1800 | C201: 40.04394443 | D201: 133.7158051 | E201: 17.93052742 | F201: 17.93052742
B202: 2100 | C202: 29.07771186 | D202: 83.60867673 | E202: 15.13860979 | F202: 15.13860979
B203: 2400 | C203: 21.96020514 | D203: 55.47889979 | E203: 13.04467157 | F203: 13.04467157
B204: 2700 | C204: 17.08046597 | D204: 38.48449693 | E204: 11.41605295 | F204: 11.41605295
B205: 3000 | C205: 13.59001724 | D205: 27.61810345 | E205: 10.11315805 | F205: 10.11315805
B206: 3300 | C206: 11.00747993 | D206: 20.34878653 | E206: 9.047153141 | F206: 9.047153141
B207: 3600 | C207: 9.043248508 | D207: 15.30319164 | E207: 8.158815712 | F207: 8.158815712
B208: 3900 | C208: 7.514614587 | D208: 11.69206506 | E208: 7.407145581 | F208: 7.407145581
B212: Applied | C212: Deflection
B213: =Lintel_Safe_Load+D116+D146 -> 6.936060997 | C213: =B213*5/384*B197^4/D140/D143 -> 3.603757257
C214: =Lintel_Span/C213 -> 1248.696757
